[Event "*** Titled Tuesday Blitz"]
[Site "Chess.com"]
[Date "2019.03.05"]
[Round "2"]
[White "mouseWLZ"]
[Black "slowdgehammer"]
[Result "1-0"]
[WhiteElo "2469"]
[BlackElo "2349"]
[TimeControl "180+2"]
[EndTime "13:24:51 PST"]
[Termination "mouseWLZ won by resignation"]

1. d4 {[%clk 0:03:01.9]} 1... Nf6 {[%clk 0:03:00.4]} 2. Nf3 {[%clk 0:03:03]}
2... e6 {[%clk 0:03:01.1]} 3. c4 {[%clk 0:03:04.3]} 3... d5 {[%clk 0:03:02]} 4.
g3 {[%clk 0:03:04.1]} 4... a6 {[%clk 0:03:02.7]} 5. Bg2 {[%clk 0:03:04.9]} 5...
dxc4 {[%clk 0:03:03.2]} 6. O-O {[%clk 0:03:05.3]} 6... b5 {[%clk 0:03:01.2]} 7.
Ne5 {[%clk 0:03:06.5]} 7... Nd5 {[%clk 0:03:00.7]} 8. a4 {[%clk 0:03:07.8]} 8...
Bb7 {[%clk 0:02:57.5]} 9. e4 {[%clk 0:03:08.9]} 9... Nb6 {[%clk 0:02:49.2]} 10.
axb5 {[%clk 0:03:09.8]} 10... axb5 {[%clk 0:02:49.7]} 11. Rxa8 {[%clk
0:03:11.3]} 11... Bxa8 {[%clk 0:02:51.6]} 12. Nc3 {[%clk 0:03:10.8]} 12... c6
{[%clk 0:02:43.4]} 13. Qh5 {[%clk 0:02:12.9]} 13... g6 {[%clk 0:02:10.2]} 14.
Qf3 {[%clk 0:02:13]} 14... f6 {[%clk 0:02:11.7]} 15. Ng4 {[%clk 0:01:57.9]}
15... Bg7 {[%clk 0:02:11.6]} 16. Bh6 {[%clk 0:01:57.5]} 16... O-O {[%clk
0:02:08.4]} 17. Bxg7 {[%clk 0:01:57.3]} 17... Kxg7 {[%clk 0:02:08.9]} 18. Qe3
{[%clk 0:01:58.2]} 18... N8d7 {[%clk 0:02:05.4]} 19. Ra1 {[%clk 0:01:57.4]}
19... Bb7 {[%clk 0:01:56.2]} 20. h4 {[%clk 0:01:57.8]} 20... Qe7 {[%clk
0:01:50.1]} 21. Ra7 {[%clk 0:01:55.2]} 21... Rb8 {[%clk 0:01:51.3]} 22. e5
{[%clk 0:01:38.4]} 22... f5 {[%clk 0:01:44.2]} 23. Qh6+ {[%clk 0:01:33.5]} 23...
Kg8 {[%clk 0:01:44.9]} 24. Nf6+ {[%clk 0:01:12.5]} 24... Nxf6 {[%clk 0:01:45.3]}
25. exf6 {[%clk 0:01:14.4]} 25... Qxf6 {[%clk 0:01:46.1]} 26. Bxc6 {[%clk
0:01:12.8]} 26... Qg7 {[%clk 0:01:29]} 27. Qxg7+ {[%clk 0:01:09.2]} 27... Kxg7
{[%clk 0:01:29.4]} 28. Nxb5 {[%clk 0:01:02.8]} 28... Kf6 {[%clk 0:01:24.7]} 29.
Rxb7 {[%clk 0:01:02.4]} 29... Rxb7 {[%clk 0:01:22.3]} 30. Bxb7 {[%clk
0:01:04.3]} 30... Na4 {[%clk 0:01:24.1]} 31. Nc3 {[%clk 0:00:54.5]} 31... Nxb2
{[%clk 0:01:24.6]} 32. f4 {[%clk 0:00:51.5]} 32... h6 {[%clk 0:01:16.5]} 33. Kf1
{[%clk 0:00:49.8]} 33... g5 {[%clk 0:01:17.3]} 34. Ba6 {[%clk 0:00:42.5]} 34...
gxh4 {[%clk 0:01:15.9]} 35. gxh4 {[%clk 0:00:43.3]} 35... Nd3 {[%clk 0:01:15.8]}
36. Ne2 {[%clk 0:00:44.1]} 36... Nb2 {[%clk 0:01:09.6]} 37. h5 {[%clk
0:00:43.2]} 37... Ke7 {[%clk 0:01:07.9]} 38. Ke1 {[%clk 0:00:43.7]} 38... Kd6
{[%clk 0:01:07.7]} 39. Kd2 {[%clk 0:00:44.9]} 39... Kd5 {[%clk 0:01:08]} 40.
Bb7+ {[%clk 0:00:36.3]} 40... Kd6 {[%clk 0:01:07.4]} 41. Kc3 {[%clk 0:00:37.1]}
41... Nd1+ {[%clk 0:01:01.2]} 42. Kxc4 {[%clk 0:00:38.1]} 42... Ne3+ {[%clk
0:01:02.3]} 43. Kd3 {[%clk 0:00:39]} 43... Nd1 {[%clk 0:00:54.5]} 44. Bf3 {[%clk
0:00:37.7]} 44... Nf2+ {[%clk 0:00:55.4]} 45. Kc4 {[%clk 0:00:38.4]} 45... Nd1
{[%clk 0:00:49]} 46. Kb3 {[%clk 0:00:31.8]} 46... Ne3 {[%clk 0:00:45.4]} 47. Kc3
{[%clk 0:00:31.1]} 47... Nd1+ {[%clk 0:00:45.3]} 48. Kd2 {[%clk 0:00:32.1]}
48... Nb2 {[%clk 0:00:46]} 49. Nc3 {[%clk 0:00:32.4]} 49... Nc4+ {[%clk
0:00:46.7]} 50. Kd3 {[%clk 0:00:33.7]} 50... Nb6 {[%clk 0:00:46.9]} 51. Nb5+
{[%clk 0:00:33.5]} 51... Ke7 {[%clk 0:00:46.7]} 52. Kc3 {[%clk 0:00:34.7]} 52...
Kd7 {[%clk 0:00:46.4]} 53. Kb4 {[%clk 0:00:35.5]} 53... Nc8 {[%clk 0:00:46.2]}
54. Kc5 {[%clk 0:00:34.5]} 54... Ne7 {[%clk 0:00:46.2]} 55. d5 {[%clk 0:00:35]}
55... exd5 {[%clk 0:00:46.7]} 56. Bxd5 {[%clk 0:00:36.6]} 56... Nc8 {[%clk
0:00:43]} 57. Kd4 {[%clk 0:00:34.1]} 57... Nb6 {[%clk 0:00:36.8]} 58. Ke5 {[%clk
0:00:34.2]} 1-0

[Event "*** Titled Tuesday Blitz"]
[Site "Chess.com"]
[Date "2019.03.05"]
[Round "2"]
[White "Gabrielian_Artur"]
[Black "TheBigBoss04"]
[Result "1-0"]
[WhiteElo "2735"]
[BlackElo "2554"]
[TimeControl "180+2"]
[EndTime "13:24:53 PST"]
[Termination "Gabrielian_Artur won by checkmate"]

1. e4 {[%clk 0:03:01.9]} 1... c5 {[%clk 0:03:00.2]} 2. Nc3 {[%clk 0:03:02.3]}
2... a6 {[%clk 0:02:55.2]} 3. g3 {[%clk 0:03:02]} 3... b5 {[%clk 0:02:55.8]} 4.
Bg2 {[%clk 0:03:02.6]} 4... Bb7 {[%clk 0:02:57.5]} 5. Nge2 {[%clk 0:03:00.8]}
5... e6 {[%clk 0:02:57]} 6. O-O {[%clk 0:03:00.9]} 6... b4 {[%clk 0:02:28.7]} 7.
Na4 {[%clk 0:03:01.1]} 7... d5 {[%clk 0:02:25.8]} 8. exd5 {[%clk 0:02:58.8]}
8... Bxd5 {[%clk 0:02:08]} 9. Bxd5 {[%clk 0:02:58.8]} 9... exd5 {[%clk 0:02:09]}
10. d4 {[%clk 0:02:55.4]} 10... c4 {[%clk 0:01:45.8]} 11. Re1 {[%clk 0:02:50.2]}
11... Be7 {[%clk 0:01:43]} 12. Nf4 {[%clk 0:02:30.4]} 12... Nf6 {[%clk
0:01:43.1]} 13. Qe2 {[%clk 0:02:31.1]} 13... Ra7 {[%clk 0:01:39.5]} 14. b3
{[%clk 0:02:22.6]} 14... c3 {[%clk 0:01:23.7]} 15. a3 {[%clk 0:02:19.5]} 15...
O-O {[%clk 0:01:21.9]} 16. axb4 {[%clk 0:02:20]} 16... Bxb4 {[%clk 0:01:21.6]}
17. Nd3 {[%clk 0:02:21.1]} 17... Re7 {[%clk 0:01:08]} 18. Be3 {[%clk 0:02:16.8]}
18... Nc6 {[%clk 0:00:57]} 19. Nxb4 {[%clk 0:02:12]} 19... Nxb4 {[%clk
0:00:54.7]} 20. Nxc3 {[%clk 0:02:06.7]} 20... Qc8 {[%clk 0:00:46.9]} 21. Qd2
{[%clk 0:01:59.6]} 21... Rc7 {[%clk 0:00:44.8]} 22. Nb5 {[%clk 0:01:49.1]} 22...
Nxc2 {[%clk 0:00:13.9]} 23. Nxc7 {[%clk 0:01:49.4]} 23... Nxe1 {[%clk
0:00:15.1]} 24. Qxe1 {[%clk 0:01:43.8]} 24... Qxc7 {[%clk 0:00:15.5]} 25. Rxa6
{[%clk 0:01:44.9]} 25... Qb7 {[%clk 0:00:15]} 26. Ra3 {[%clk 0:01:29.3]} 26...
h6 {[%clk 0:00:15.5]} 27. b4 {[%clk 0:01:28]} 27... Rb8 {[%clk 0:00:15.7]} 28.
Rb3 {[%clk 0:01:16]} 28... Qc6 {[%clk 0:00:16.7]} 29. Rb1 {[%clk 0:01:14.8]}
29... Ne4 {[%clk 0:00:15.8]} 30. f3 {[%clk 0:01:07.4]} 30... Nd6 {[%clk
0:00:13]} 31. Bf4 {[%clk 0:01:04]} 31... Re8 {[%clk 0:00:11.3]} 32. Qc1 {[%clk
0:01:04.9]} 32... Nc4 {[%clk 0:00:08.8]} 33. b5 {[%clk 0:01:06.2]} 33... Qb6
{[%clk 0:00:10]} 34. Qc3 {[%clk 0:01:06.5]} 34... Re2 {[%clk 0:00:10.7]} 35. g4
{[%clk 0:00:55.1]} 35... Ra2 {[%clk 0:00:11.1]} 36. Qd3 {[%clk 0:00:22.4]} 36...
Qf6 {[%clk 0:00:08.8]} 37. Re1 {[%clk 0:00:20.3]} 37... Ra8 {[%clk 0:00:06.9]}
38. Bg3 {[%clk 0:00:20.3]} 38... g6 {[%clk 0:00:06.4]} 39. Kg2 {[%clk
0:00:18.6]} 39... Ra2+ {[%clk 0:00:06.9]} 40. Kh3 {[%clk 0:00:18.4]} 40... Ra3
{[%clk 0:00:07.8]} 41. Qe2 {[%clk 0:00:19.1]} 41... Rxf3 {[%clk 0:00:08.1]} 42.
b6 {[%clk 0:00:19.5]} 42... h5 {[%clk 0:00:07.8]} 43. b7 {[%clk 0:00:20]} 43...
hxg4+ {[%clk 0:00:07]} 44. Kg2 {[%clk 0:00:21.3]} 44... Rb3 {[%clk 0:00:04.9]}
45. b8=Q+ {[%clk 0:00:22.1]} 45... Rxb8 {[%clk 0:00:06.4]} 46. Bxb8 {[%clk
0:00:23.7]} 46... Qb6 {[%clk 0:00:05.7]} 47. Qe8+ {[%clk 0:00:23.7]} 47... Kg7
{[%clk 0:00:05.9]} 48. Be5+ {[%clk 0:00:24.8]} 48... f6 {[%clk 0:00:06.7]} 49.
Qe7+ {[%clk 0:00:25.4]} 49... Kh6 {[%clk 0:00:08.2]} 50. Qxf6 {[%clk 0:00:26.7]}
50... Qb2+ {[%clk 0:00:09.2]} 51. Qf2 {[%clk 0:00:27.8]} 51... Qc3 {[%clk
0:00:10.8]} 52. Qh4# {[%clk 0:00:28.7]} 1-0

[Event "*** Titled Tuesday Blitz"]
[Site "Chess.com"]
[Date "2019.03.05"]
[Round "2"]
[White "wenx95"]
[Black "murmah2003"]
[Result "1-0"]
[WhiteElo "2480"]
[BlackElo "2530"]
[TimeControl "180+2"]
[EndTime "13:25:07 PST"]
[Termination "wenx95 won by resignation"]

1. c4 {[%clk 0:03:01.9]} 1... Nf6 {[%clk 0:02:58.6]} 2. g3 {[%clk 0:03:02.4]}
2... g6 {[%clk 0:02:59.3]} 3. Bg2 {[%clk 0:03:02.2]} 3... Bg7 {[%clk 0:03:01.2]}
4. Nc3 {[%clk 0:03:02.1]} 4... O-O {[%clk 0:03:02.5]} 5. e4 {[%clk 0:03:03.1]}
5... d6 {[%clk 0:03:01.1]} 6. Nge2 {[%clk 0:03:04.2]} 6... e5 {[%clk 0:03:02]}
7. O-O {[%clk 0:03:05.2]} 7... Nc6 {[%clk 0:03:02.7]} 8. d3 {[%clk 0:03:06.5]}
8... Nd7 {[%clk 0:02:35.6]} 9. Be3 {[%clk 0:03:02.6]} 9... Nc5 {[%clk
0:02:18.5]} 10. d4 {[%clk 0:02:54.5]} 10... exd4 {[%clk 0:02:20.4]} 11. Nxd4
{[%clk 0:02:56]} 11... Ne5 {[%clk 0:02:19.8]} 12. b3 {[%clk 0:02:21.2]} 12...
Ng4 {[%clk 0:02:14.8]} 13. Bf4 {[%clk 0:02:19]} 13... c6 {[%clk 0:01:41.5]} 14.
Qd2 {[%clk 0:02:05.6]} 14... Qe7 {[%clk 0:01:05.1]} 15. Rad1 {[%clk 0:01:50.3]}
15... Rd8 {[%clk 0:01:04.7]} 16. Nc2 {[%clk 0:01:35.4]} 16... Ne5 {[%clk
0:00:51.3]} 17. f3 {[%clk 0:01:14.4]} 17... Be6 {[%clk 0:00:48.5]} 18. Nd4
{[%clk 0:01:13.3]} 18... a5 {[%clk 0:00:41.9]} 19. Nxe6 {[%clk 0:01:10.6]} 19...
Qxe6 {[%clk 0:00:39.3]} 20. Bg5 {[%clk 0:01:05.4]} 20... f6 {[%clk 0:00:16.2]}
21. Bh6 {[%clk 0:01:05.1]} 21... Bxh6 {[%clk 0:00:14.6]} 22. Qxh6 {[%clk
0:01:06]} 22... a4 {[%clk 0:00:15.9]} 23. Bh3 {[%clk 0:01:03]} 23... Qf7 {[%clk
0:00:13.4]} 24. f4 {[%clk 0:01:00.2]} 24... Ned3 {[%clk 0:00:13.4]} 25. Nxa4
{[%clk 0:00:55.8]} 25... Nb4 {[%clk 0:00:06.1]} 26. e5 {[%clk 0:00:37.3]} 26...
Nxa4 {[%clk 0:00:03.8]} 27. bxa4 {[%clk 0:00:29.2]} 27... dxe5 {[%clk
0:00:04.7]} 28. fxe5 {[%clk 0:00:22.2]} 28... Rxd1 {[%clk 0:00:04.7]} 29. Rxd1
{[%clk 0:00:22.2]} 29... f5 {[%clk 0:00:06]} 30. Bf1 {[%clk 0:00:13]} 30... Re8
{[%clk 0:00:03.5]} 31. Qd2 {[%clk 0:00:10.9]} 31... Na6 {[%clk 0:00:03.9]} 32.
Qd7 {[%clk 0:00:11.9]} 32... Re7 {[%clk 0:00:03.8]} 33. Qc8+ {[%clk 0:00:11.7]}
33... Kg7 {[%clk 0:00:04.9]} 34. Qd8 {[%clk 0:00:06.3]} 34... Rxe5 {[%clk
0:00:05]} 35. Rd7 {[%clk 0:00:07.2]} 35... Nc5 {[%clk 0:00:04.8]} 36. Rxf7+
{[%clk 0:00:08]} 36... Kxf7 {[%clk 0:00:06.7]} 37. Qc7+ {[%clk 0:00:08.4]} 37...
Re7 {[%clk 0:00:07.9]} 38. Qd6 {[%clk 0:00:09.1]} 38... Ne4 {[%clk 0:00:09]} 39.
Qd4 {[%clk 0:00:10.1]} 39... Ke6 {[%clk 0:00:08.5]} 40. c5 {[%clk 0:00:11.2]}
40... Rd7 {[%clk 0:00:05.7]} 41. Bc4+ {[%clk 0:00:12.6]} 41... Ke7 {[%clk
0:00:07.6]} 42. Qe5+ {[%clk 0:00:12.2]} 42... Kd8 {[%clk 0:00:07]} 43. Be6
{[%clk 0:00:12.9]} 43... Rd1+ {[%clk 0:00:08.2]} 44. Kg2 {[%clk 0:00:14.1]}
44... Rd2+ {[%clk 0:00:09]} 45. Kf1 {[%clk 0:00:14.9]} 45... Rxh2 {[%clk
0:00:04.6]} 46. Qb8+ {[%clk 0:00:13.4]} 46... Ke7 {[%clk 0:00:05.7]} 47. Qxb7+
{[%clk 0:00:13.6]} 47... Kxe6 {[%clk 0:00:06.8]} 48. Qxc6+ {[%clk 0:00:13.9]}
48... Ke5 {[%clk 0:00:08.1]} 49. Qc7+ {[%clk 0:00:14.2]} 49... Kd4 {[%clk
0:00:09.3]} 50. a5 {[%clk 0:00:15.2]} 50... Rxa2 {[%clk 0:00:07]} 51. c6 {[%clk
0:00:13.7]} 51... g5 {[%clk 0:00:08.2]} 52. Qb6+ {[%clk 0:00:13.2]} 52... Kd3
{[%clk 0:00:09.1]} 53. Qb3+ {[%clk 0:00:12.9]} 53... Nc3 {[%clk 0:00:10.5]} 54.
Qxa2 {[%clk 0:00:14]} 1-0

[Event "*** Titled Tuesday Blitz"]
[Site "Chess.com"]
[Date "2019.03.05"]
[Round "2"]
[White "Jospem"]
[Black "kenta1234"]
[Result "0-1"]
[WhiteElo "2869"]
[BlackElo "2603"]
[TimeControl "180+2"]
[EndTime "13:25:09 PST"]
[Termination "kenta1234 won by checkmate"]

1. c4 {[%clk 0:03:01.9]} 1... Nf6 {[%clk 0:03:00.4]} 2. g3 {[%clk 0:03:03.1]}
2... g6 {[%clk 0:03:01.4]} 3. Bg2 {[%clk 0:03:04.6]} 3... Bg7 {[%clk 0:03:03.3]}
4. Nf3 {[%clk 0:03:06.2]} 4... O-O {[%clk 0:03:04.7]} 5. O-O {[%clk 0:03:07.9]}
5... d6 {[%clk 0:03:02.6]} 6. d4 {[%clk 0:03:08.7]} 6... Nc6 {[%clk 0:03:03.6]}
7. Nc3 {[%clk 0:03:09.8]} 7... a6 {[%clk 0:03:02.7]} 8. Bf4 {[%clk 0:03:08.8]}
8... Rb8 {[%clk 0:03:02.6]} 9. Rc1 {[%clk 0:03:10.1]} 9... Bd7 {[%clk
0:03:03.5]} 10. a3 {[%clk 0:03:11.1]} 10... b5 {[%clk 0:03:03.9]} 11. cxb5
{[%clk 0:03:08.7]} 11... axb5 {[%clk 0:03:05.8]} 12. b4 {[%clk 0:03:10.5]} 12...
e6 {[%clk 0:03:02.6]} 13. e4 {[%clk 0:03:08.4]} 13... Na7 {[%clk 0:03:02.5]} 14.
e5 {[%clk 0:03:06.7]} 14... Ne8 {[%clk 0:03:00.6]} 15. Bg5 {[%clk 0:02:55.1]}
15... f6 {[%clk 0:02:58.3]} 16. exf6 {[%clk 0:02:57]} 16... Nxf6 {[%clk
0:02:54.5]} 17. Re1 {[%clk 0:02:54.8]} 17... Nc8 {[%clk 0:02:45.3]} 18. Ne4
{[%clk 0:02:53.3]} 18... Nb6 {[%clk 0:02:43.7]} 19. Nxf6+ {[%clk 0:02:34.8]}
19... Bxf6 {[%clk 0:02:45.6]} 20. Bh6 {[%clk 0:02:36.3]} 20... Re8 {[%clk
0:02:45.2]} 21. h4 {[%clk 0:02:35.3]} 21... Bg7 {[%clk 0:02:39.8]} 22. Bg5
{[%clk 0:02:33.5]} 22... Bf6 {[%clk 0:02:41]} 23. Qd3 {[%clk 0:02:32.1]} 23...
Nd5 {[%clk 0:02:41]} 24. Bh6 {[%clk 0:02:29.1]} 24... Bg7 {[%clk 0:02:40.2]} 25.
Bd2 {[%clk 0:02:30.2]} 25... Qf6 {[%clk 0:02:38.6]} 26. Bg5 {[%clk 0:02:28.4]}
26... Qf5 {[%clk 0:02:39]} 27. Qd2 {[%clk 0:02:26.8]} 27... Ra8 {[%clk
0:02:37.8]} 28. Qb2 {[%clk 0:02:20.5]} 28... Ra7 {[%clk 0:02:27.4]} 29. Nd2
{[%clk 0:02:06.6]} 29... Rea8 {[%clk 0:02:22.5]} 30. Be4 {[%clk 0:01:36.1]}
30... Qg4 {[%clk 0:02:17.9]} 31. Nb1 {[%clk 0:01:24.5]} 31... Rf8 {[%clk
0:01:57.7]} 32. Qd2 {[%clk 0:01:14.2]} 32... Qh3 {[%clk 0:01:46.9]} 33. Bg2
{[%clk 0:01:12.2]} 33... Qf5 {[%clk 0:01:47.6]} 34. Nc3 {[%clk 0:01:06.7]} 34...
Nb6 {[%clk 0:01:43.7]} 35. Be4 {[%clk 0:00:52.5]} 35... Qf7 {[%clk 0:01:43.3]}
36. Nb1 {[%clk 0:00:48.3]} 36... Nc4 {[%clk 0:01:39.2]} 37. Qe2 {[%clk
0:00:42.9]} 37... Bxd4 {[%clk 0:01:38]} 38. Rf1 {[%clk 0:00:44.6]} 38... d5
{[%clk 0:01:33.2]} 39. Bd3 {[%clk 0:00:46]} 39... e5 {[%clk 0:01:28.4]} 40. Rcd1
{[%clk 0:00:47.4]} 40... c6 {[%clk 0:01:25.4]} 41. Kh2 {[%clk 0:00:48.3]} 41...
Nxa3 {[%clk 0:01:25.6]} 42. Nd2 {[%clk 0:00:48.3]} 42... Nc4 {[%clk 0:01:25.6]}
43. Nb3 {[%clk 0:00:49.7]} 43... Bb6 {[%clk 0:01:17.4]} 44. Nc5 {[%clk
0:00:33.5]} 44... Bf5 {[%clk 0:01:14.9]} 45. Bxc4 {[%clk 0:00:33.9]} 45... bxc4
{[%clk 0:01:12.9]} 46. Qxe5 {[%clk 0:00:35.1]} 46... Bc7 {[%clk 0:01:13.5]} 47.
Qd4 {[%clk 0:00:33.6]} 47... Ra3 {[%clk 0:01:14.5]} 48. Rde1 {[%clk 0:00:30.8]}
48... Bd6 {[%clk 0:01:00.5]} 49. Bh6 {[%clk 0:00:30]} 49... Rb8 {[%clk
0:01:00.2]} 50. Bf4 {[%clk 0:00:31.1]} 50... Bxf4 {[%clk 0:00:55.2]} 51. Qxf4
{[%clk 0:00:33]} 51... Rf8 {[%clk 0:00:54.5]} 52. Qd6 {[%clk 0:00:29.9]} 52...
Ra2 {[%clk 0:00:44.4]} 53. Re7 {[%clk 0:00:20.5]} 53... Qf6 {[%clk 0:00:45.2]}
54. Qxf6 {[%clk 0:00:14.7]} 54... Rxf6 {[%clk 0:00:47.1]} 55. Kg1 {[%clk
0:00:14.5]} 55... Bh3 {[%clk 0:00:46]} 56. Re8+ {[%clk 0:00:14]} 56... Kg7
{[%clk 0:00:46.8]} 57. Re7+ {[%clk 0:00:15.1]} 57... Kh6 {[%clk 0:00:48]} 58.
Nd7 {[%clk 0:00:11.3]} 58... Rf5 {[%clk 0:00:45.3]} 59. Rfe1 {[%clk 0:00:05]}
59... Rfxf2 {[%clk 0:00:46.1]} 60. R1e5 {[%clk 0:00:02.6]} 60... Rf1# {[%clk
0:00:45.5]} 0-1

[Event "*** Titled Tuesday Blitz"]
[Site "Chess.com"]
[Date "2019.03.05"]
[Round "2"]
[White "Blagorod"]
[Black "STAYFlow"]
[Result "0-1"]
[WhiteElo "2135"]
[BlackElo "2247"]
[TimeControl "180+2"]
[EndTime "13:25:14 PST"]
[Termination "STAYFlow won by resignation"]

1. e4 {[%clk 0:03:01.9]} 1... e5 {[%clk 0:03:00.2]} 2. Nf3 {[%clk 0:03:02.4]}
2... Nc6 {[%clk 0:03:01.4]} 3. Bb5 {[%clk 0:03:03.1]} 3... a6 {[%clk 0:03:02.1]}
4. Ba4 {[%clk 0:03:04.4]} 4... Nf6 {[%clk 0:03:02.7]} 5. O-O {[%clk 0:03:05.3]}
5... Be7 {[%clk 0:03:03.2]} 6. d3 {[%clk 0:03:04.6]} 6... b5 {[%clk 0:03:01.5]}
7. Bb3 {[%clk 0:03:05.6]} 7... d6 {[%clk 0:03:00.6]} 8. a4 {[%clk 0:03:06.5]}
8... Bd7 {[%clk 0:02:59]} 9. Nc3 {[%clk 0:02:58.2]} 9... Na5 {[%clk 0:02:54.4]}
10. Ba2 {[%clk 0:02:42.9]} 10... bxa4 {[%clk 0:02:25.4]} 11. d4 {[%clk
0:02:34.4]} 11... exd4 {[%clk 0:02:18.8]} 12. Nxd4 {[%clk 0:02:34.7]} 12... O-O
{[%clk 0:02:16.3]} 13. Qf3 {[%clk 0:02:01.4]} 13... Nc6 {[%clk 0:01:50.4]} 14.
Nf5 {[%clk 0:01:51.6]} 14... Ne5 {[%clk 0:01:34.6]} 15. Qg3 {[%clk 0:01:37.2]}
15... Bxf5 {[%clk 0:01:08.8]} 16. exf5 {[%clk 0:01:37]} 16... Kh8 {[%clk
0:01:10]} 17. Nxa4 {[%clk 0:00:47.4]} 17... Qd7 {[%clk 0:01:05.3]} 18. Nc3
{[%clk 0:00:34.7]} 18... Qxf5 {[%clk 0:01:01.6]} 19. h3 {[%clk 0:00:28.2]} 19...
Rab8 {[%clk 0:00:44]} 20. Bb3 {[%clk 0:00:23]} 20... c6 {[%clk 0:00:31.8]} 21.
Rxa6 {[%clk 0:00:21.2]} 21... d5 {[%clk 0:00:33.3]} 22. Bf4 {[%clk 0:00:18.1]}
22... Nh5 {[%clk 0:00:29.1]} 23. Qe3 {[%clk 0:00:16.9]} 23... Qxf4 {[%clk
0:00:28.3]} 24. Qxf4 {[%clk 0:00:16.6]} 24... Nxf4 {[%clk 0:00:30.2]} 25. Re1
{[%clk 0:00:16.9]} 25... Bf6 {[%clk 0:00:29.6]} 26. g3 {[%clk 0:00:16.1]} 26...
Nxh3+ {[%clk 0:00:29.8]} 27. Kg2 {[%clk 0:00:17.4]} 27... Nxf2 {[%clk
0:00:21.7]} 28. Kxf2 {[%clk 0:00:18.2]} 28... Ng4+ {[%clk 0:00:21.2]} 29. Kf3
{[%clk 0:00:17.9]} 29... Bxc3 {[%clk 0:00:22.7]} 30. bxc3 {[%clk 0:00:17.6]}
30... Nf6 {[%clk 0:00:21.9]} 31. Rxc6 {[%clk 0:00:17.2]} 31... Rbc8 {[%clk
0:00:22.8]} 32. Rd6 {[%clk 0:00:16]} 32... Rxc3+ {[%clk 0:00:23.7]} 33. Kg2
{[%clk 0:00:16.8]} 33... Rc5 {[%clk 0:00:24]} 34. Ra6 {[%clk 0:00:15.3]} 34...
h6 {[%clk 0:00:22.3]} 35. Ra7 {[%clk 0:00:15.9]} 35... Ne4 {[%clk 0:00:22]} 36.
Bxd5 {[%clk 0:00:15]} 36... Rxc2+ {[%clk 0:00:22.9]} 37. Kf3 {[%clk 0:00:13.7]}
37... Ng5+ {[%clk 0:00:23.8]} 38. Kf4 {[%clk 0:00:11.4]} 38... Rd8 {[%clk
0:00:16.3]} 39. Bxf7 {[%clk 0:00:08.8]} 39... Rf8 {[%clk 0:00:17.8]} 40. Ree7
{[%clk 0:00:07.2]} 40... Rf2+ {[%clk 0:00:17.4]} 41. Kg4 {[%clk 0:00:06.1]}
41... R2xf7 {[%clk 0:00:19.3]} 42. Rxf7 {[%clk 0:00:05.9]} 42... Rxf7 {[%clk
0:00:21.2]} 43. Ra8+ {[%clk 0:00:07]} 43... Kh7 {[%clk 0:00:21.2]} 44. Kh4
{[%clk 0:00:07.7]} 44... Nf3+ {[%clk 0:00:21.6]} 45. Kg4 {[%clk 0:00:08.9]}
45... Ne5+ {[%clk 0:00:22.9]} 46. Kh3 {[%clk 0:00:09.7]} 46... h5 {[%clk
0:00:22.8]} 47. Kh4 {[%clk 0:00:09.9]} 47... Kh6 {[%clk 0:00:23.7]} 48. Ra6+
{[%clk 0:00:09.8]} 48... g6 {[%clk 0:00:24.1]} 49. Kh3 {[%clk 0:00:09.7]} 49...
Ng4 {[%clk 0:00:20.6]} 50. Ra5 {[%clk 0:00:08.2]} 50... Rc7 {[%clk 0:00:16.8]}
51. Ra2 {[%clk 0:00:08.1]} 51... Rc3 {[%clk 0:00:17.2]} 52. Rb2 {[%clk
0:00:07.4]} 52... Nf6 {[%clk 0:00:17.8]} 53. Rb6 {[%clk 0:00:06.7]} 53... Ne4
{[%clk 0:00:18.3]} 54. Kh4 {[%clk 0:00:07.2]} 54... Rxg3 {[%clk 0:00:15.5]} 55.
Rxg6+ {[%clk 0:00:07.1]} 55... Rxg6 {[%clk 0:00:16.5]} 0-1